[Event "Titled Tuesday Blitz February 14 Early 2023"]
[White "Caspi, Israel"]
[Black "Burdalev, Kirill"]
[WhiteFideId "2807394"]
[BlackFideId "14121913"]
[WhiteElo "2466"]
[BlackElo "2368"]
[Result "1-0"]
[Round "10"]
[TimeControl "180+2"]
[Date "2023.02.14"]
[WhiteClock "0:01:58"]
[BlackClock "0:00:12"]

1. e4 {[%clk 0:03:00]}  c5 {[%clk 0:02:58]} 2. Nf3 {[%clk 0:03:00]}  d6 {[%clk 0:02:57]} 3. d4 {[%clk 0:02:59]}  cxd4 {[%clk 0:02:57]} 4. Nxd4 {[%clk 0:03:00]}  Nf6 {[%clk 0:02:56]} 5. f3 {[%clk 0:02:59]}  g6 {[%clk 0:02:54]} 6. c4 {[%clk 0:02:59]}  Bg7 {[%clk 0:02:52]} 7. Nc3 {[%clk 0:02:59]}  O-O {[%clk 0:02:46]} 8. Be3 {[%clk 0:02:59]}  Nc6 {[%clk 0:02:44]} 9. Qd2 {[%clk 0:02:59]}  Bd7 {[%clk 0:02:41]} 10. Be2 {[%clk 0:02:49]}  Nxd4 {[%clk 0:02:36]} 11. Bxd4 {[%clk 0:02:49]}  a5 {[%clk 0:02:34]} 12. h4 {[%clk 0:02:47]}  h5 {[%clk 0:02:32]} 13. O-O-O {[%clk 0:02:46]}  a4 {[%clk 0:02:28]} 14. Kb1 {[%clk 0:02:46]}  Qa5 {[%clk 0:02:16]} 15. Rdg1 {[%clk 0:02:33]}  Rfc8 {[%clk 0:02:14]} 16. g4 {[%clk 0:02:32]}  Be6 {[%clk 0:02:10]} 17. gxh5 {[%clk 0:02:29]}  Nxh5 {[%clk 0:02:08]} 18. Rg5 {[%clk 0:02:29]}  Qb4 {[%clk 0:02:03]} 19. Rxh5 {[%clk 0:02:27]}  gxh5 {[%clk 0:02:02]} 20. Rg1 {[%clk 0:02:25]}  Bg4 {[%clk 0:01:37]} 21. Bxg7 {[%clk 0:02:22]}  Kxg7 {[%clk 0:01:35]} 22. fxg4 {[%clk 0:02:22]}  Qc5 {[%clk 0:01:32]} 23. Rg2 {[%clk 0:02:15]}  Kh7 {[%clk 0:01:12]} 24. Nd5 {[%clk 0:02:09]}  Rg8 {[%clk 0:00:32]} 25. e5 {[%clk 0:02:09]}  f5 {[%clk 0:00:17]} 26. exf6 {[%clk 0:02:07]}  exf6 {[%clk 0:00:12]} 27. Nxf6+ {[%clk 0:02:01]}  Kg7 {[%clk 0:00:12]} 28. Nxg8 {[%clk 0:02:00]}  Rxg8 {[%clk 0:00:09]} 29. gxh5+ {[%clk 0:02:00]}  Kf8 {[%clk 0:00:10]} 30. Rxg8+ {[%clk 0:02:00]}  Kxg8 {[%clk 0:00:10]} 31. Qg5+ {[%clk 0:02:01]}  Kf8 {[%clk 0:00:10]} 32. Qxc5 {[%clk 0:02:01]}  dxc5 {[%clk 0:00:11]} 33. Bd1 {[%clk 0:01:59]}  a3 {[%clk 0:00:11]} 34. bxa3 {[%clk 0:01:59]}  Kg7 {[%clk 0:00:11]} 35. Kc2 {[%clk 0:01:58]}  Kh6 {[%clk 0:00:12]} 36. Kb3 {[%clk 0:01:58]} 1-0


[Site "https://www.chess.com"]

[Event "Titled Tuesday Blitz February 14 Early 2023"]
[White "Santos Flores, Alberto"]
[Black "Michalski, Olaf"]
[WhiteFideId "3601234"]
[BlackFideId "1106740"]
[WhiteElo "2164"]
[BlackElo "2273"]
[Result "1-0"]
[Round "10"]
[TimeControl "180+2"]
[Date "2023.02.14"]
[WhiteClock "0:01:13"]
[BlackClock "0:00:05"]

1. e4 {[%clk 0:03:00]}  c5 {[%clk 0:02:55]} 2. Nf3 {[%clk 0:03:00]}  a6 {[%clk 0:02:54]} 3. Nc3 {[%clk 0:02:59]}  b6 {[%clk 0:02:53]} 4. d4 {[%clk 0:02:59]}  cxd4 {[%clk 0:02:47]} 5. Nxd4 {[%clk 0:03:00]}  e6 {[%clk 0:02:45]} 6. Be3 {[%clk 0:02:57]}  Qc7 {[%clk 0:02:40]} 7. Qd2 {[%clk 0:02:56]}  Nf6 {[%clk 0:02:38]} 8. a3 {[%clk 0:02:56]}  Bc5 {[%clk 0:02:36]} 9. f3 {[%clk 0:02:51]}  O-O {[%clk 0:02:34]} 10. O-O-O {[%clk 0:02:51]}  d5 {[%clk 0:02:27]} 11. exd5 {[%clk 0:02:49]}  Nxd5 {[%clk 0:02:14]} 12. Nxd5 {[%clk 0:02:49]}  exd5 {[%clk 0:02:14]} 13. Bd3 {[%clk 0:02:49]}  Nc6 {[%clk 0:02:06]} 14. Nxc6 {[%clk 0:02:44]}  Qxc6 {[%clk 0:02:05]} 15. Rhe1 {[%clk 0:02:39]}  Be6 {[%clk 0:01:52]} 16. h4 {[%clk 0:02:35]}  Rfc8 {[%clk 0:01:47]} 17. h5 {[%clk 0:02:32]}  d4 {[%clk 0:01:29]} 18. Bf4 {[%clk 0:02:28]}  Qa4 {[%clk 0:01:24]} 19. h6 {[%clk 0:02:00]}  g6 {[%clk 0:01:17]} 20. Qe2 {[%clk 0:02:00]}  Bxa3 {[%clk 0:01:08]} 21. Qe5 {[%clk 0:01:50]}  Bf8 {[%clk 0:00:30]} 22. Qf6 {[%clk 0:01:49]}  Qa1+ {[%clk 0:00:15]} 23. Kd2 {[%clk 0:01:49]}  Qxb2 {[%clk 0:00:16]} 24. Rxe6 {[%clk 0:01:47]}  Re8 {[%clk 0:00:05]} 25. Be5 {[%clk 0:01:13]}  Qc3+ {[%clk 0:00:05]} 26. Ke2 {[%clk 0:01:13]} 1-0


[Site "https://www.chess.com"]

[Event "Titled Tuesday Blitz February 14 Early 2023"]
[White "Ter-Sahakyan, Samvel"]
[Black "Le, Tuan Minh"]
[WhiteFideId "13302531"]
[BlackFideId "12401153"]
[WhiteElo "2617"]
[BlackElo "2542"]
[Result "1/2-1/2"]
[Round "11"]
[TimeControl "180+2"]
[Date "2023.02.14"]
[WhiteClock "0:00:15"]
[BlackClock "0:00:17"]

1. d4 {[%clk 0:03:00]}  d5 {[%clk 0:03:00]} 2. c4 {[%clk 0:02:59]}  c6 {[%clk 0:03:00]} 3. Nf3 {[%clk 0:02:59]}  Nf6 {[%clk 0:03:00]} 4. e3 {[%clk 0:02:58]}  Bf5 {[%clk 0:03:00]} 5. Nc3 {[%clk 0:02:58]}  e6 {[%clk 0:03:01]} 6. Nh4 {[%clk 0:02:57]}  Be4 {[%clk 0:03:01]} 7. f3 {[%clk 0:02:58]}  Bg6 {[%clk 0:03:02]} 8. Bd2 {[%clk 0:02:51]}  Be7 {[%clk 0:03:01]} 9. Nxg6 {[%clk 0:02:50]}  hxg6 {[%clk 0:03:01]} 10. Qc2 {[%clk 0:02:51]}  a6 {[%clk 0:03:00]} 11. O-O-O {[%clk 0:02:48]}  dxc4 {[%clk 0:02:53]} 12. Bxc4 {[%clk 0:02:49]}  b5 {[%clk 0:02:54]} 13. Be2 {[%clk 0:02:49]}  c5 {[%clk 0:02:31]} 14. dxc5 {[%clk 0:02:33]}  Bxc5 {[%clk 0:02:30]} 15. Kb1 {[%clk 0:02:24]}  Qb6 {[%clk 0:02:18]} 16. Ne4 {[%clk 0:01:53]}  Nxe4 {[%clk 0:02:07]} 17. Qxe4 {[%clk 0:01:54]}  Ra7 {[%clk 0:02:07]} 18. h4 {[%clk 0:01:33]}  Nd7 {[%clk 0:01:53]} 19. Rc1 {[%clk 0:00:52]}  Nf6 {[%clk 0:01:24]} 20. Qc2 {[%clk 0:00:52]}  Rc7 {[%clk 0:01:23]} 21. Qb3 {[%clk 0:00:36]}  O-O {[%clk 0:01:18]} 22. e4 {[%clk 0:00:33]}  Rfc8 {[%clk 0:00:58]} 23. g4 {[%clk 0:00:28]}  Bd4 {[%clk 0:00:53]} 24. Rxc7 {[%clk 0:00:28]}  Rxc7 {[%clk 0:00:41]} 25. h5 {[%clk 0:00:22]}  gxh5 {[%clk 0:00:42]} 26. gxh5 {[%clk 0:00:23]}  Nh7 {[%clk 0:00:35]} 27. f4 {[%clk 0:00:21]}  Qb7 {[%clk 0:00:27]} 28. Bf3 {[%clk 0:00:20]}  Rd7 {[%clk 0:00:26]} 29. h6 {[%clk 0:00:18]}  gxh6 {[%clk 0:00:25]} 30. e5 {[%clk 0:00:13]}  Qc8 {[%clk 0:00:23]} 31. Be4 {[%clk 0:00:13]}  Qf8 {[%clk 0:00:17]} 32. Qh3 {[%clk 0:00:04]}  f5 {[%clk 0:00:15]} 33. exf6 {[%clk 0:00:03]}  Qxf6 {[%clk 0:00:15]} 34. Qf3 {[%clk 0:00:03]}  Bxb2 {[%clk 0:00:11]} 35. Rg1+ {[%clk 0:00:03]}  Kh8 {[%clk 0:00:11]} 36. Qg4 {[%clk 0:00:04]}  Rg7 {[%clk 0:00:09]} 37. Qd1 {[%clk 0:00:03]}  Ba1 {[%clk 0:00:07]} 38. Bc1 {[%clk 0:00:03]}  Rxg1 {[%clk 0:00:07]} 39. Qxg1 {[%clk 0:00:03]}  Bd4 {[%clk 0:00:07]} 40. Qg3 {[%clk 0:00:02]}  Nf8 {[%clk 0:00:08]} 41. Qh3 {[%clk 0:00:02]}  Kg7 {[%clk 0:00:05]} 42. f5 {[%clk 0:00:03]}  exf5 {[%clk 0:00:04]} 43. Bxf5 {[%clk 0:00:04]}  Be5 {[%clk 0:00:04]} 44. Qg4+ {[%clk 0:00:04]}  Kf7 {[%clk 0:00:05]} 45. Qh5+ {[%clk 0:00:04]}  Ke7 {[%clk 0:00:05]} 46. Bxh6 {[%clk 0:00:04]}  Qd6 {[%clk 0:00:04]} 47. Bg5+ {[%clk 0:00:04]}  Bf6 {[%clk 0:00:05]} 48. Qe2+ {[%clk 0:00:05]}  Kd8 {[%clk 0:00:04]} 49. Qd2 {[%clk 0:00:05]}  Qxd2 {[%clk 0:00:03]} 50. Bxd2 {[%clk 0:00:06]}  Ke7 {[%clk 0:00:02]} 51. Bb4+ {[%clk 0:00:06]}  Kf7 {[%clk 0:00:02]} 52. Bxf8 {[%clk 0:00:06]}  Kxf8 {[%clk 0:00:03]} 53. Bc8 {[%clk 0:00:07]}  a5 {[%clk 0:00:04]} 54. Bd7 {[%clk 0:00:07]}  b4 {[%clk 0:00:04]} 55. Ba4 {[%clk 0:00:07]}  Ke7 {[%clk 0:00:05]} 56. Kc2 {[%clk 0:00:08]}  Kd6 {[%clk 0:00:06]} 57. Kb3 {[%clk 0:00:08]}  Kc5 {[%clk 0:00:06]} 58. a3 {[%clk 0:00:09]}  bxa3 {[%clk 0:00:04]} 59. Kxa3 {[%clk 0:00:09]}  Kc4 {[%clk 0:00:04]} 60. Ka2 {[%clk 0:00:09]}  Kb4 {[%clk 0:00:04]} 61. Bd7 {[%clk 0:00:09]}  Be5 {[%clk 0:00:05]} 62. Be8 {[%clk 0:00:10]}  Bd6 {[%clk 0:00:06]} 63. Bd7 {[%clk 0:00:10]}  Bc7 {[%clk 0:00:05]} 64. Be8 {[%clk 0:00:11]}  Bd8 {[%clk 0:00:05]} 65. Bd7 {[%clk 0:00:11]}  Kc5 {[%clk 0:00:06]} 66. Be8 {[%clk 0:00:11]}  Kd6 {[%clk 0:00:07]} 67. Ba4 {[%clk 0:00:12]}  Kc5 {[%clk 0:00:08]} 68. Bb3 {[%clk 0:00:12]}  Kd6 {[%clk 0:00:09]} 69. Ba4 {[%clk 0:00:12]}  Ke6 {[%clk 0:00:10]} 70. Bb3+ {[%clk 0:00:13]}  Ke5 {[%clk 0:00:10]} 71. Ba4 {[%clk 0:00:13]}  Kd4 {[%clk 0:00:11]} 72. Bb3 {[%clk 0:00:13]}  Kc5 {[%clk 0:00:12]} 73. Bc2 {[%clk 0:00:14]}  Kb4 {[%clk 0:00:13]} 74. Bd1 {[%clk 0:00:14]}  Kc3 {[%clk 0:00:14]} 75. Bb3 {[%clk 0:00:14]}  Kd4 {[%clk 0:00:15]} 76. Ba4 {[%clk 0:00:14]}  Kc3 {[%clk 0:00:16]} 77. Bb3 {[%clk 0:00:14]}  a4 {[%clk 0:00:17]} 78. Bxa4 {[%clk 0:00:15]} 1/2-1/2


[Site "https://www.chess.com"]

[Event "Titled Tuesday Blitz February 14 Early 2023"]
[White "Andreikin, Dmitry"]
[Black "Chigaev, Maksim"]
[WhiteFideId "4158814"]
[BlackFideId "4108116"]
[WhiteElo "2729"]
[BlackElo "2628"]
[Result "1-0"]
[Round "11"]
[TimeControl "180+2"]
[Date "2023.02.14"]
[WhiteClock "0:00:19"]
[BlackClock "0:00:03"]

1. Nf3 {[%clk 0:03:00]}  Nf6 {[%clk 0:03:00]} 2. c4 {[%clk 0:02:59]}  g6 {[%clk 0:03:00]} 3. b4 {[%clk 0:02:59]}  Bg7 {[%clk 0:02:59]} 4. Bb2 {[%clk 0:02:59]}  O-O {[%clk 0:02:56]} 5. e3 {[%clk 0:02:56]}  d6 {[%clk 0:02:53]} 6. Be2 {[%clk 0:02:55]}  a5 {[%clk 0:02:50]} 7. b5 {[%clk 0:02:50]}  e5 {[%clk 0:02:48]} 8. O-O {[%clk 0:02:45]}  Re8 {[%clk 0:02:48]} 9. Nc3 {[%clk 0:02:40]}  Nbd7 {[%clk 0:02:45]} 10. d3 {[%clk 0:02:31]}  Nc5 {[%clk 0:02:42]} 11. Nd2 {[%clk 0:02:30]}  Bf5 {[%clk 0:02:39]} 12. Qc2 {[%clk 0:02:27]}  a4 {[%clk 0:02:20]} 13. Ba3 {[%clk 0:02:24]}  e4 {[%clk 0:02:03]} 14. d4 {[%clk 0:02:14]}  Ne6 {[%clk 0:02:03]} 15. Qd1 {[%clk 0:02:02]}  h5 {[%clk 0:02:02]} 16. Nxa4 {[%clk 0:01:55]}  h4 {[%clk 0:01:56]} 17. Bb2 {[%clk 0:01:51]}  h3 {[%clk 0:01:26]} 18. g3 {[%clk 0:01:50]}  Ng5 {[%clk 0:01:27]} 19. Nc3 {[%clk 0:01:50]}  Qd7 {[%clk 0:01:27]} 20. Nd5 {[%clk 0:01:28]}  Nxd5 {[%clk 0:00:58]} 21. cxd5 {[%clk 0:01:29]}  c6 {[%clk 0:00:27]} 22. g4 {[%clk 0:01:12]}  cxd5 {[%clk 0:00:25]} 23. gxf5 {[%clk 0:01:12]}  Qxf5 {[%clk 0:00:26]} 24. Bg4 {[%clk 0:01:12]}  Qf6 {[%clk 0:00:26]} 25. a4 {[%clk 0:01:09]}  Nh7 {[%clk 0:00:18]} 26. Bxh3 {[%clk 0:01:04]}  Qh4 {[%clk 0:00:15]} 27. Qg4 {[%clk 0:01:03]}  Qh6 {[%clk 0:00:16]} 28. Bg2 {[%clk 0:00:54]}  f5 {[%clk 0:00:10]} 29. Qf4 {[%clk 0:00:54]}  Qh5 {[%clk 0:00:03]} 30. Qxd6 {[%clk 0:00:54]}  Rad8 {[%clk 0:00:04]} 31. Qg3 {[%clk 0:00:51]}  Bf6 {[%clk 0:00:04]} 32. Rac1 {[%clk 0:00:41]}  Bh4 {[%clk 0:00:04]} 33. Qc7 {[%clk 0:00:40]}  Ng5 {[%clk 0:00:04]} 34. Kh1 {[%clk 0:00:25]}  Ne6 {[%clk 0:00:04]} 35. Qxb7 {[%clk 0:00:24]}  Re7 {[%clk 0:00:03]} 36. Qb6 {[%clk 0:00:23]}  Rde8 {[%clk 0:00:04]} 37. Rc6 {[%clk 0:00:23]}  Bg5 {[%clk 0:00:02]} 38. Ba3 {[%clk 0:00:23]}  Rh7 {[%clk 0:00:02]} 39. h3 {[%clk 0:00:21]}  Nf8 {[%clk 0:00:02]} 40. Bxf8 {[%clk 0:00:20]}  Rxf8 {[%clk 0:00:03]} 41. Rxg6+ {[%clk 0:00:20]}  Kh8 {[%clk 0:00:03]} 42. Qd6 {[%clk 0:00:20]}  Rd8 {[%clk 0:00:03]} 43. Qe5+ {[%clk 0:00:19]} 1-0


[Site "https://www.chess.com"]

[Event "Titled Tuesday Blitz February 14 Early 2023"]
[White "Livaic, Leon"]
[Black "Korobov, Anton"]
[WhiteFideId "14531534"]
[BlackFideId "14105730"]
[WhiteElo "2579"]
[BlackElo "2664"]
[Result "0-1"]
[Round "11"]
[TimeControl "180+2"]
[Date "2023.02.14"]
[WhiteClock "0:00:06"]
[BlackClock "0:01:02"]

1. d4 {[%clk 0:03:00]}  Nf6 {[%clk 0:02:59]} 2. c4 {[%clk 0:03:00]}  e6 {[%clk 0:03:00]} 3. Nf3 {[%clk 0:03:00]}  d5 {[%clk 0:03:00]} 4. Nc3 {[%clk 0:03:00]}  c6 {[%clk 0:03:00]} 5. Bg5 {[%clk 0:03:01]}  h6 {[%clk 0:03:00]} 6. Bxf6 {[%clk 0:03:01]}  Qxf6 {[%clk 0:03:01]} 7. Qc2 {[%clk 0:02:59]}  dxc4 {[%clk 0:02:56]} 8. e3 {[%clk 0:02:51]}  b5 {[%clk 0:02:56]} 9. a4 {[%clk 0:02:48]}  Bb4 {[%clk 0:02:56]} 10. axb5 {[%clk 0:02:48]}  cxb5 {[%clk 0:02:56]} 11. Qe4 {[%clk 0:02:49]}  Qg6 {[%clk 0:02:26]} 12. Qxa8 {[%clk 0:02:47]}  Qc2 {[%clk 0:02:25]} 13. Bxc4 {[%clk 0:01:08]}  Bxc3+ {[%clk 0:02:16]} 14. Kf1 {[%clk 0:01:06]}  O-O {[%clk 0:02:00]} 15. bxc3 {[%clk 0:00:53]}  Qxc3 {[%clk 0:01:54]} 16. Qxa7 {[%clk 0:00:53]}  Nc6 {[%clk 0:01:46]} 17. Qa2 {[%clk 0:00:47]}  Nb4 {[%clk 0:01:45]} 18. Qb1 {[%clk 0:00:35]}  Qxc4+ {[%clk 0:01:41]} 19. Kg1 {[%clk 0:00:36]}  Bb7 {[%clk 0:01:37]} 20. h3 {[%clk 0:00:22]}  Nd3 {[%clk 0:01:15]} 21. Kh2 {[%clk 0:00:13]}  Nxf2 {[%clk 0:01:06]} 22. Rc1 {[%clk 0:00:13]}  Qe2 {[%clk 0:01:06]} 23. Ra2 {[%clk 0:00:06]}  Qxe3 {[%clk 0:01:05]} 24. Re1 {[%clk 0:00:06]}  Qf4+ {[%clk 0:01:05]} 25. Kg1 {[%clk 0:00:06]}  Nxh3+ {[%clk 0:01:02]} 26. gxh3 {[%clk 0:00:06]}  Qxf3 {[%clk 0:01:02]} 0-1


[Site "https://www.chess.com"]

[Event "Titled Tuesday Blitz February 14 Early 2023"]
[White "Makarian, Rudik"]
[Black "Van Foreest, Jorden"]
[WhiteFideId "44105681"]
[BlackFideId "1039784"]
[WhiteElo "2545"]
[BlackElo "2689"]
[Result "1-0"]
[Round "11"]
[TimeControl "180+2"]
[Date "2023.02.14"]
[WhiteClock "0:00:18"]
[BlackClock "0:00:01"]

1. d4 {[%clk 0:03:00]}  d5 {[%clk 0:03:00]} 2. c4 {[%clk 0:03:01]}  c6 {[%clk 0:03:01]} 3. Nf3 {[%clk 0:03:01]}  Nf6 {[%clk 0:03:01]} 4. Nc3 {[%clk 0:03:00]}  e6 {[%clk 0:02:59]} 5. Bg5 {[%clk 0:02:59]}  h6 {[%clk 0:02:59]} 6. Bh4 {[%clk 0:02:57]}  Be7 {[%clk 0:02:59]} 7. e3 {[%clk 0:02:57]}  O-O {[%clk 0:02:56]} 8. Bd3 {[%clk 0:02:57]}  dxc4 {[%clk 0:02:50]} 9. Bxc4 {[%clk 0:02:57]}  b5 {[%clk 0:02:50]} 10. Bd3 {[%clk 0:02:57]}  Bb7 {[%clk 0:02:51]} 11. O-O {[%clk 0:02:57]}  Nbd7 {[%clk 0:02:49]} 12. Rc1 {[%clk 0:02:50]}  a5 {[%clk 0:02:49]} 13. Bxf6 {[%clk 0:02:42]}  Nxf6 {[%clk 0:02:39]} 14. Ne4 {[%clk 0:02:42]}  Nd7 {[%clk 0:02:40]} 15. Qc2 {[%clk 0:02:40]}  c5 {[%clk 0:02:15]} 16. Nxc5 {[%clk 0:02:03]}  Nxc5 {[%clk 0:02:15]} 17. dxc5 {[%clk 0:02:03]}  Rc8 {[%clk 0:02:15]} 18. Rfd1 {[%clk 0:01:53]}  Qe8 {[%clk 0:02:15]} 19. Qe2 {[%clk 0:01:44]}  Rxc5 {[%clk 0:02:01]} 20. Rxc5 {[%clk 0:01:39]}  Bxc5 {[%clk 0:02:02]} 21. Bxb5 {[%clk 0:01:39]}  Qb8 {[%clk 0:02:03]} 22. Bc4 {[%clk 0:01:33]}  Qc7 {[%clk 0:01:45]} 23. b3 {[%clk 0:01:32]}  Be7 {[%clk 0:01:39]} 24. h3 {[%clk 0:01:26]}  Bf6 {[%clk 0:01:38]} 25. e4 {[%clk 0:01:13]}  g6 {[%clk 0:01:34]} 26. Qe3 {[%clk 0:01:07]}  Bg7 {[%clk 0:01:29]} 27. Rd2 {[%clk 0:00:56]}  Ra8 {[%clk 0:01:27]} 28. a4 {[%clk 0:00:55]}  Rc8 {[%clk 0:01:22]} 29. Qd3 {[%clk 0:00:53]}  Bf6 {[%clk 0:01:19]} 30. Qe3 {[%clk 0:00:48]}  Kg7 {[%clk 0:01:13]} 31. h4 {[%clk 0:00:44]}  Bc6 {[%clk 0:00:58]} 32. Nd4 {[%clk 0:00:41]}  Bd7 {[%clk 0:00:51]} 33. g3 {[%clk 0:00:40]}  Rd8 {[%clk 0:00:47]} 34. Nf3 {[%clk 0:00:37]}  Bc6 {[%clk 0:00:39]} 35. Nd4 {[%clk 0:00:37]}  Bxa4 {[%clk 0:00:35]} 36. e5 {[%clk 0:00:27]}  Be7 {[%clk 0:00:27]} 37. h5 {[%clk 0:00:23]}  Bb4 {[%clk 0:00:09]} 38. Nxe6+ {[%clk 0:00:18]}  fxe6 {[%clk 0:00:08]} 39. Rxd8 {[%clk 0:00:19]}  Qxd8 {[%clk 0:00:08]} 40. bxa4 {[%clk 0:00:19]}  Qd1+ {[%clk 0:00:06]} 41. Kg2 {[%clk 0:00:19]}  Qxh5 {[%clk 0:00:04]} 42. Qa7+ {[%clk 0:00:18]}  Kh8 {[%clk 0:00:03]} 43. Qb8+ {[%clk 0:00:18]}  Kg7 {[%clk 0:00:01]} 44. Qc7+ {[%clk 0:00:18]} 1-0


[Site "https://www.chess.com"]

[Event "Titled Tuesday Blitz February 14 Early 2023"]
[White "Indjic, Aleksandar"]
[Black "Vokhidov, Shamsiddin"]
[WhiteFideId "911925"]
[BlackFideId "14204223"]
[WhiteElo "2618"]
[BlackElo "2586"]
[Result "1-0"]
[Round "11"]
[TimeControl "180+2"]
[Date "2023.02.14"]
[WhiteClock "0:01:10"]
[BlackClock "0:00:17"]

1. d4 {[%clk 0:03:00]}  Nf6 {[%clk 0:03:00]} 2. c4 {[%clk 0:02:59]}  e6 {[%clk 0:03:01]} 3. Nc3 {[%clk 0:02:59]}  Bb4 {[%clk 0:03:01]} 4. Qc2 {[%clk 0:03:00]}  d5 {[%clk 0:03:01]} 5. cxd5 {[%clk 0:02:58]}  exd5 {[%clk 0:03:02]} 6. Bg5 {[%clk 0:02:58]}  h6 {[%clk 0:03:03]} 7. Bh4 {[%clk 0:02:55]}  Nc6 {[%clk 0:03:03]} 8. e3 {[%clk 0:02:55]}  g5 {[%clk 0:03:03]} 9. Bg3 {[%clk 0:02:56]}  h5 {[%clk 0:03:04]} 10. Bd3 {[%clk 0:02:56]}  Qe7 {[%clk 0:03:03]} 11. Nf3 {[%clk 0:02:53]}  h4 {[%clk 0:02:58]} 12. Be5 {[%clk 0:02:48]}  Rh5 {[%clk 0:02:58]} 13. h3 {[%clk 0:02:40]}  g4 {[%clk 0:02:51]} 14. Bxf6 {[%clk 0:02:35]}  Qxf6 {[%clk 0:02:51]} 15. hxg4 {[%clk 0:02:35]}  Bxg4 {[%clk 0:02:52]} 16. Nh2 {[%clk 0:02:27]}  Be6 {[%clk 0:02:46]} 17. O-O-O {[%clk 0:02:22]}  O-O-O {[%clk 0:02:42]} 18. f4 {[%clk 0:01:26]}  Rg8 {[%clk 0:02:36]} 19. Nf3 {[%clk 0:01:26]}  Bxc3 {[%clk 0:02:03]} 20. bxc3 {[%clk 0:01:27]}  Bg4 {[%clk 0:01:54]} 21. Rdg1 {[%clk 0:01:21]}  Bxf3 {[%clk 0:01:43]} 22. gxf3 {[%clk 0:01:22]}  Rxg1+ {[%clk 0:01:43]} 23. Rxg1 {[%clk 0:01:22]}  h3 {[%clk 0:01:43]} 24. Qh2 {[%clk 0:01:15]}  Qe7 {[%clk 0:01:38]} 25. Kd2 {[%clk 0:01:13]}  Qa3 {[%clk 0:01:22]} 26. Rg8+ {[%clk 0:01:12]}  Kd7 {[%clk 0:01:17]} 27. Qg3 {[%clk 0:01:12]}  f5 {[%clk 0:00:22]} 28. Qg6 {[%clk 0:01:10]}  Rh4 {[%clk 0:00:16]} 29. Qe8+ {[%clk 0:01:09]}  Kd6 {[%clk 0:00:17]} 30. Rg6# {[%clk 0:01:10]} 1-0


[Site "https://www.chess.com"]

[Event "Titled Tuesday Blitz February 14 Early 2023"]
[White "Nihal Sarin"]
[Black "Sanal, Vahap"]
[WhiteFideId "25092340"]
[BlackFideId "6300545"]
[WhiteElo "2673"]
[BlackElo "2600"]
[Result "0-1"]
[Round "11"]
[TimeControl "180+2"]
[Date "2023.02.14"]
[WhiteClock "0:00:01"]
[BlackClock "0:00:06"]

1. b3 {[%clk 0:03:00]}  d5 {[%clk 0:02:59]} 2. Bb2 {[%clk 0:03:00]}  Nf6 {[%clk 0:02:59]} 3. Nf3 {[%clk 0:03:00]}  Bf5 {[%clk 0:02:59]} 4. Nh4 {[%clk 0:02:59]}  Bg6 {[%clk 0:02:54]} 5. e3 {[%clk 0:02:58]}  e6 {[%clk 0:02:54]} 6. Nxg6 {[%clk 0:02:52]}  hxg6 {[%clk 0:02:54]} 7. g3 {[%clk 0:02:53]}  Nbd7 {[%clk 0:02:53]} 8. Bg2 {[%clk 0:02:53]}  Bd6 {[%clk 0:02:53]} 9. c4 {[%clk 0:02:48]}  c6 {[%clk 0:02:52]} 10. d4 {[%clk 0:02:46]}  Bb4+ {[%clk 0:02:47]} 11. Bc3 {[%clk 0:02:41]}  Bxc3+ {[%clk 0:02:42]} 12. Nxc3 {[%clk 0:02:42]}  Qa5 {[%clk 0:02:28]} 13. Qd2 {[%clk 0:02:41]}  a6 {[%clk 0:02:29]} 14. Rd1 {[%clk 0:02:32]}  Rd8 {[%clk 0:02:26]} 15. O-O {[%clk 0:02:31]}  dxc4 {[%clk 0:02:25]} 16. bxc4 {[%clk 0:02:32]}  Qh5 {[%clk 0:02:25]} 17. h3 {[%clk 0:02:32]}  g5 {[%clk 0:02:25]} 18. e4 {[%clk 0:02:21]}  g4 {[%clk 0:02:20]} 19. h4 {[%clk 0:02:20]}  Ne5 {[%clk 0:02:04]} 20. Qf4 {[%clk 0:01:35]}  Nxc4 {[%clk 0:01:45]} 21. Qc7 {[%clk 0:01:24]}  Rd7 {[%clk 0:01:24]} 22. Qb8+ {[%clk 0:01:08]}  Ke7 {[%clk 0:01:24]} 23. Qf4 {[%clk 0:01:09]}  Rhd8 {[%clk 0:01:23]} 24. d5 {[%clk 0:00:56]}  Qe5 {[%clk 0:01:04]} 25. Qc1 {[%clk 0:00:56]}  b5 {[%clk 0:01:03]} 26. Ne2 {[%clk 0:00:40]}  cxd5 {[%clk 0:00:59]} 27. Nd4 {[%clk 0:00:40]}  Qc7 {[%clk 0:00:36]} 28. exd5 {[%clk 0:00:22]}  Nxd5 {[%clk 0:00:37]} 29. Qg5+ {[%clk 0:00:15]}  Kf8 {[%clk 0:00:37]} 30. Nb3 {[%clk 0:00:05]}  Nf6 {[%clk 0:00:34]} 31. Rde1 {[%clk 0:00:06]}  Rd6 {[%clk 0:00:24]} 32. h5 {[%clk 0:00:06]}  Ke7 {[%clk 0:00:15]} 33. Re2 {[%clk 0:00:03]}  a5 {[%clk 0:00:15]} 34. Qxb5 {[%clk 0:00:03]}  Rb8 {[%clk 0:00:13]} 35. Qg5 {[%clk 0:00:03]}  a4 {[%clk 0:00:11]} 36. Nc5 {[%clk 0:00:03]}  Rb5 {[%clk 0:00:11]} 37. Nxe6 {[%clk 0:00:04]}  Rxg5 {[%clk 0:00:06]} 38. Nxc7+ {[%clk 0:00:04]}  Kd7 {[%clk 0:00:05]} 39. Rc1 {[%clk 0:00:05]}  Rc5 {[%clk 0:00:05]} 40. Nb5 {[%clk 0:00:03]}  Rxb5 {[%clk 0:00:05]} 41. Rxc4 {[%clk 0:00:03]}  Rd1+ {[%clk 0:00:05]} 42. Bf1 {[%clk 0:00:03]}  Rbb1 {[%clk 0:00:05]} 43. Kg2 {[%clk 0:00:02]}  Rxf1 {[%clk 0:00:05]} 44. Rd2+ {[%clk 0:00:03]}  Ke6 {[%clk 0:00:06]} 45. Re2+ {[%clk 0:00:03]}  Kd5 {[%clk 0:00:05]} 46. Rec2 {[%clk 0:00:01]}  Rg1+ {[%clk 0:00:06]} 0-1


[Site "https://www.chess.com"]